bitfinex/quotes_ETHUSD_20241106
["timestamp","ask_amount","ask_price","bid_price","bid_amount"]
[1730898125604,0.35400745,2632.4,2631.8,3.79959]
[1730898125928,4.15297333,2632.3,2631.6,7.59975]
[1730898126108,0.35401333,2632.2,2631.7,3.79981]
[1730898126435,3.79896,2632.3,2631.6,3.79985]
[1730898126640,3.79896,2632.3,2631.6,7.59972]
[1730898126847,4.742851,2632.5,2631.4,0.7885]
[1730898126848,4.742851,2632.5,2631.4,4.5887]
[1730898127013,3.79933,2632.1,2631.4,4.58867]
[1730898127225,4.59897,2631.9,2631.2,3.80047]
[1730898127416,4.3498,2631.8,2631.2,3.80047]
[1730898127857,4.3498,2631.8,2631.3,3.8004]
[1730898127858,0.55,2631.8,2631.3,3.8004]
[1730898128110,3.79986,2631.7,2631.0,3.80071]
[1730898128386,3.79986,2631.7,2631.2,3.80053]
[1730898128665,0.55,2631.8,2631.2,3.80053]
[1730898128666,4.3497,2631.8,2631.2,3.80053]
[1730898129163,3.79983,2631.7,2631.2,3.80053]
[1730898129375,0.55,2631.6,2630.8,3.801]
[1730898129664,0.55,2631.6,2630.8,4.25843]
[1730898129965,3.80012,2631.5,2631.0,3.80073]
[1730898130466,0.55,2631.6,2631.0,3.80083]
[1730898130634,0.7993,2631.9,2631.2,3.80054]
[1730898130827,0.7993,2631.9,2631.4,3.80025]
[1730898131086,3.79932,2632.1,2631.4,3.80025]
[1730898131087,0.55,2632.0,2631.6,3.79995]
[1730898131233,0.7539,2632.3,2631.4,5.97347204]
[1730898131573,0.7539,2632.3,2631.9,3.79943]
[1730898131739,4.55234,2632.7,2632.0,3.79928]
[1730898132140,3.79889,2632.4,2631.9,3.79943]
[1730898132753,0.55,2632.5,2631.9,3.79943]
[1730898132945,0.55,2632.5,2632.0,3.79937]
[1730898133271,4.3487,2632.5,2631.9,3.79943]
[1730898133565,4.34876,2632.5,2631.9,3.79951]
[1730898133734,5.538862,2632.5,2631.8,3.79966]
[1730898133927,3.79896,2632.3,2631.8,3.79966]
[1730898134472,5.538862,2632.5,2631.9,3.79953]
[1730898134629,3.79889,2632.4,2631.8,7.59924]
[1730898134827,3.79889,2632.4,2631.8,7.59916]
[1730898135044,3.79889,2632.4,2631.8,3.79958]
[1730898135260,3.79899,2632.3,2631.8,3.79958]
[1730898135487,3.79899,2632.3,2631.6,3.79987]
[1730898135488,3.79932,2632.1,2631.6,3.79987]
[1730898135666,3.79918,2632.2,2631.6,3.79987]
[1730898135861,0.55,2632.1,2631.6,3.79993]
[1730898136446,6.79859,2632.6,2632.1,3.79916]
[1730898136658,3.79859,2632.6,2632.1,7.59832]
[1730898136847,3.7539,2632.7,2632.2,3.79908]
[1730898137176,0.7539,2632.7,2632.1,3.79914]
[1730898137477,3.79854,2632.6,2632.1,3.79914]
[1730898137966,0.7539,2632.7,2632.3,3.79894]
[1730898139074,0.7539,2632.7,2631.9,3.79946]
[1730898139288,3.79893,2632.4,2631.9,3.79946]
[1730898140410,4.3492,2632.2,2631.6,3.79988]
[1730898140726,4.34856,2632.6,2631.5,3.80001]
[1730898140727,3.79946,2632.0,2631.5,3.80008]
[1730898140873,0.7603,2632.1,2631.7,3.7997]
[1730898141120,3.79919,2632.2,2631.7,7.59945]
[1730898141370,3.79932,2632.1,2631.5,3.8]
[1730898141683,3.7992,2632.2,2631.6,3.79986]
[1730898141976,0.55,2632.3,2631.5,3.80011]
[1730898142176,3.7995,2632.0,2631.5,3.80011]
[1730898142693,0.55,2632.1,2631.5,3.80004]
[1730898142888,3.79946,2632.0,2631.4,3.80025]
[1730898143045,3.79961,2631.9,2631.4,3.80025]
[1730898144039,7.59898,2632.0,2631.5,3.80003]
[1730898144475,3.79946,2632.0,2631.5,3.80003]
[1730898144633,3.79946,2632.0,2631.5,3.79999]
[1730898145469,7.59897,2632.0,2631.5,3.79999]
[1730898145677,3.79946,2632.0,2631.6,3.79995]
[1730898146039,0.55,2632.1,2631.5,3.79999]
[1730898146263,0.55,2632.1,2631.6,3.79996]
[1730898146677,4.6139,2632.4,2631.6,3.79996]
[1730898146678,0.815,2632.4,2632.0,3.79927]
[1730898146877,3.79868,2632.5,2631.7,0.88519429]
[1730898146878,3.79868,2632.5,2631.8,3.79967]
[1730898147056,3.79882,2632.4,2631.9,3.79941]
[1730898147243,3.79882,2632.4,2631.7,0.8092]
[1730898147443,3.79928,2632.1,2631.7,4.60901]
[1730898147667,0.55,2632.3,2631.7,3.79981]
[1730898147882,3.79911,2632.2,2631.7,3.79981]
[1730898148279,4.34895,2632.3,2631.8,3.79958]
[1730898148475,4.34897,2632.3,2631.8,3.79958]
[1730898148654,3.79912,2632.2,2631.7,3.79981]
[1730898148869,3.79912,2632.2,2631.7,7.59955]
[1730898149477,4.6519122,2632.2,2631.7,3.79974]
[1730898149682,3.79925,2632.1,2631.7,3.79974]
[1730898149842,3.79925,2632.1,2631.6,3.79995]
[1730898151084,4.6519122,2632.2,2631.7,3.7998]
[1730898151247,3.79912,2632.2,2631.7,3.7998]
[1730898151883,7.59836,2632.2,2631.7,3.7998]
[1730898152192,3.79946,2632.0,2631.5,3.79998]
[1730898152500,3.79946,2632.0,2631.4,0.785]
[1730898152501,3.7997,2631.8,2631.4,3.80025]
[1730898152795,7.59899,2632.0,2631.5,3.80011]
[1730898153083,3.79946,2632.0,2631.5,3.80011]
[1730898153288,3.79961,2631.9,2631.4,3.80025]
[1730898153457,3.79969,2631.8,2631.2,3.80043]
[1730898153662,4.693891,2631.9,2631.3,3.80038]
[1730898153860,3.79955,2631.9,2631.4,3.80025]
[1730898154078,0.55,2632.0,2631.5,3.80001]
[1730898154257,4.59373,2632.1,2631.6,3.79989]
[1730898154487,0.28064677,2632.0,2631.6,3.79989]
[1730898154708,0.28064677,2631.9,2631.6,3.79989]
[1730898154875,8.39311,2632.1,2631.6,3.79989]
[1730898155094,4.080104,2632.0,2631.6,3.79989]
[1730898155293,4.080104,2632.0,2631.4,3.80014]
[1730898155294,0.280694,2631.9,2631.4,3.80014]
[1730898155447,4.080304,2631.9,2631.4,3.80014]
[1730898155654,3.79961,2631.9,2631.4,4.19560266]
[1730898155846,0.55,2632.0,2631.4,0.39546266]
[1730898156056,3.79979,2631.8,2631.4,0.39546266]
[1730898156253,3.79985,2631.7,2631.4,0.39546266]
[1730898157876,3.79965,2631.9,2631.5,3.8001]
[1730898158066,0.55,2632.0,2631.5,3.8001]
[1730898158390,3.80003,2631.6,2631.4,0.39546266]
[1730898160503,3.80011,2631.5,2631.4,0.39546266]
[1730898160648,5.14251,2631.5,2631.4,0.39546266]
[1730898160849,5.42329126,2631.5,2630.9,3.80086]
[1730898161073,3.80036,2631.4,2630.9,3.80086]
[1730898161298,4.35047,2631.3,2631.0,0.39545246]
[1730898162385,4.59261,2631.5,2631.0,0.39545246]
[1730898162574,3.79964,2631.9,2631.4,3.80018]
[1730898162786,0.2806958,2631.8,2631.6,3.79984]
[1730898162975,0.7971,2632.1,2631.8,3.79966]
[1730898163193,3.79912,2632.2,2631.8,3.79966]
[1730898163531,4.63081,2632.4,2631.8,3.79966]
[1730898163597,4.63081,2632.4,2631.9,3.79946]
[1730898163776,4.63081,2632.4,2631.8,3.7996]
[1730898163977,3.79896,2632.3,2631.8,7.59919]
[1730898164165,4.07963903,2632.3,2631.8,3.79959]
[1730898164369,3.7991,2632.2,2631.8,3.79959]
[1730898164591,0.28064929,2632.2,2631.8,3.79959]
[1730898164756,4.07963903,2632.3,2631.8,3.79959]
[1730898164965,0.28063863,2632.2,2631.8,3.79959]
[1730898165156,4.07963903,2632.3,2631.8,3.79959]
[1730898165363,0.28061914,2632.2,2631.8,3.79959]
[1730898165603,3.79912,2632.2,2631.6,3.79986]
[1730898165808,3.79936,2632.1,2631.6,3.79995]
[1730898166261,3.79936,2632.1,2631.6,3.79988]
[1730898166478,4.3491,2632.2,2631.7,3.79975]
[1730898166664,4.63088,2632.4,2631.8,3.79965]
[1730898166901,0.28063375,2632.3,2631.8,3.79965]
[1730898167075,4.63088,2632.4,2631.9,3.79953]
[1730898167300,0.28062441,2632.3,2631.9,3.79953]
[1730898167488,4.63088,2632.4,2631.9,3.79953]
[1730898167673,0.28065973,2632.3,2631.9,3.79953]
[1730898167883,4.63088,2632.4,2631.9,3.79953]
[1730898168209,0.28066705,2632.3,2631.9,3.79953]
[1730898168385,4.63088,2632.4,2631.9,3.79953]
[1730898168594,0.63534014,2632.3,2631.9,3.79953]
[1730898168793,4.63088,2632.4,2631.9,3.79953]
[1730898169041,0.63535618,2632.3,2631.9,3.79944]
[1730898169180,4.63088,2632.4,2631.9,3.79941]
[1730898169501,1.20401665,2632.3,2631.9,3.79941]
[1730898169696,4.63088,2632.4,2631.9,3.79941]
[1730898169697,0.92327584,2632.2,2631.9,3.79941]
[1730898169911,0.35510609,2632.1,2631.9,3.79941]
[1730898170068,0.35510609,2632.0,2631.9,3.79941]
[1730898170439,0.56819612,2632.3,2631.9,3.79941]
[1730898170606,0.35520276,2632.2,2632.0,3.79938]
[1730898170810,0.35520276,2632.1,2632.0,3.79938]
[1730898171710,0.35520276,2632.1,2631.9,3.79952]
[1730898171915,0.35520276,2632.0,2631.9,3.79952]
[1730898173105,4.15459276,2632.0,2631.4,0.7693]
[1730898173410,4.15486276,2631.9,2631.4,3.80023]
[1730898173602,0.35520276,2631.8,2631.5,3.79998]
[1730898173806,0.35520276,2631.7,2631.5,3.79998]
[1730898174100,0.55,2632.0,2631.5,3.79998]
[1730898174265,0.92365474,2631.9,2631.5,3.79998]
[1730898174485,0.92365474,2631.8,2631.6,3.79995]
[1730898174815,0.35525401,2631.7,2631.6,3.79995]
[1730898175109,0.35525401,2631.7,2631.5,3.80011]
[1730898175305,0.35525401,2631.6,2631.5,3.80011]
[1730898177368,0.56852405,2631.9,2631.5,3.80011]
[1730898177705,0.3553405,2631.8,2631.5,3.80011]
[1730898177906,0.3553405,2631.7,2631.5,3.80011]
[1730898178116,4.34942,2632.0,2631.5,3.80011]
[1730898178286,4.72343774,2631.9,2631.5,3.80011]
[1730898178611,0.92387774,2631.8,2631.5,3.80011]
[1730898178772,0.35533759,2631.7,2631.5,3.80011]
[1730898178976,0.35533759,2631.6,2631.5,3.80011]
[1730898179223,0.35535787,2631.6,2631.5,7.60014]
[1730898179387,0.59226313,2632.3,2631.9,3.79941]
[1730898179574,0.92386169,2632.2,2631.9,3.79941]
[1730898179882,0.92386169,2632.1,2631.9,3.79941]
[1730898180090,0.35533142,2632.0,2631.9,3.79941]
[1730898180631,0.92385923,2632.0,2631.8,3.79967]
[1730898180910,0.35533142,2631.9,2631.8,3.79967]
[1730898181622,0.35533142,2631.9,2631.5,3.80001]
[1730898181804,0.3553197,2631.8,2631.6,3.79994]
[1730898182123,0.3553197,2631.7,2631.6,3.79994]
[1730898182308,0.3553197,2631.7,2631.5,3.80009]
[1730898182613,3.79945,2632.0,2631.4,3.80025]
[1730898182614,0.92391963,2631.6,2631.4,3.80025]
[1730898182820,0.3553197,2631.5,2631.4,3.80025]
[1730898183386,0.3553197,2631.5,2631.3,3.8004]
[1730898183729,0.3553197,2631.4,2631.2,3.80047]
[1730898184076,0.3553197,2631.3,2631.2,7.60092]
[1730898184222,0.3553197,2631.3,2631.2,3.80045]
[1730898185031,0.3553197,2631.3,2631.2,3.80054]
[1730898185226,0.3553197,2631.3,2630.9,3.80087]
[1730898185528,0.35543583,2631.2,2631.1,3.80062]
[1730898185888,0.9242038,2631.2,2631.0,4.19596791]
[1730898186086,0.355463,2631.1,2631.0,7.99669791]
[1730898186420,0.355463,2631.1,2631.0,0.39521791]
[1730898186604,0.92417681,2631.1,2631.0,0.39521791]
[1730898186820,0.92417681,2631.1,2630.8,3.80112]
[1730898187003,0.59243833,2631.5,2630.8,3.80112]
[1730898187004,0.355463,2631.0,2630.9,4.1959498]
[1730898187517,0.355463,2631.0,2630.9,4.27196501]
[1730898187840,4.39251833,2631.6,2631.1,3.80057]
[1730898187841,3.80008,2631.6,2631.1,3.80057]
[1730898187996,0.92390637,2631.5,2631.1,3.80057]
[1730898188188,0.92390637,2631.4,2631.2,3.80052]
[1730898188398,3.80008,2631.6,2631.1,3.80057]
[1730898188399,0.92383757,2631.3,2631.1,3.80057]
[1730898188615,0.3553486,2631.2,2631.1,3.80057]
[1730898188830,0.3553486,2631.2,2631.1,4.68921683]
[1730898189092,5.19901833,2631.8,2631.4,3.80018]
[1730898189093,4.39894072,2631.8,2631.4,3.80018]
[1730898189293,0.92375245,2631.7,2631.4,3.80018]
[1730898189595,0.3552894,2631.6,2631.5,3.80011]
[1730898190333,1.36104072,2632.2,2631.8,3.79965]
[1730898190532,0.92354691,2632.1,2631.8,3.79965]
[1730898190833,0.92354691,2632.0,2631.6,7.59976]
[1730898191137,0.92354691,2631.9,2631.6,3.79987]
[1730898191437,0.92358607,2631.8,2631.6,7.59975]
[1730898191646,0.35521035,2631.7,2631.6,3.79987]
[1730898192299,0.35521035,2631.7,2631.4,3.80015]
[1730898192494,0.35521035,2631.6,2631.4,3.80015]
[1730898192812,0.35523648,2631.5,2631.4,3.80015]
[1730898193012,3.7996,2631.9,2631.4,3.80015]
[1730898193329,0.92361288,2631.8,2631.4,3.80015]
[1730898193635,0.9236622,2631.7,2631.4,3.80015]
[1730898193839,0.35523572,2631.6,2631.4,3.80015]
[1730898194033,0.35523572,2631.5,2631.4,3.80015]
[1730898194343,0.56842289,2631.8,2631.4,3.80015]
[1730898194519,0.92370636,2631.7,2631.4,3.80015]
[1730898194713,0.35527171,2631.6,2631.4,3.80015]
[1730898194923,0.35527171,2631.5,2631.4,3.80015]
[1730898195093,0.35527171,2631.5,2631.4,4.560209]
[1730898195300,0.59206108,2632.1,2631.4,4.560209]
[1730898195301,3.79926,2632.1,2631.4,4.560209]
[1730898195507,0.92366822,2632.0,2631.5,3.80011]
[1730898195706,0.92366822,2631.9,2631.5,3.80011]
[1730898195943,0.92366822,2631.8,2631.5,3.80011]
[1730898196146,0.9236848,2631.7,2631.5,3.80011]
[1730898196342,0.35525701,2631.6,2631.5,3.80011]
[1730898196710,0.35526575,2631.6,2631.5,3.80011]
[1730898197915,0.35526575,2631.6,2631.4,8.360379]
[1730898198110,3.79955,2631.9,2631.4,7.60032]
[1730898198450,0.9237077,2631.8,2631.4,3.80015]
[1730898198621,0.35527219,2631.7,2631.5,3.8001]
[1730898198820,0.35527219,2631.6,2631.4,3.80015]
[1730898199067,3.79954,2631.9,2631.3,3.80039]
[1730898199068,3.79975,2631.8,2631.3,3.80039]
[1730898199232,4.15519238,2631.7,2631.2,3.80048]
[1730898199429,0.35526238,2631.6,2631.2,3.80048]
[1730898199617,0.35526238,2631.6,2631.1,0.7527]
[1730898199618,0.35526238,2631.5,2631.1,3.80067]
[1730898199842,4.57153,2631.6,2631.1,3.80067]
[1730898199843,0.35526238,2631.4,2631.1,3.80067]
[1730898200065,4.5715,2631.6,2630.9,3.80085]
[1730898200270,3.80025,2631.5,2631.0,3.80083]
[1730898200422,3.80025,2631.5,2631.0,3.80081]
[1730898200611,0.92381387,2631.4,2631.0,3.80081]
[1730898200852,0.35532168,2631.3,2631.0,3.80081]
[1730898201029,0.35532168,2631.2,2631.0,3.80081]
[1730898201230,3.80025,2631.5,2631.0,3.80081]
[1730898201453,4.72396119,2631.4,2630.9,4.19610186]
[1730898201748,0.35526969,2631.3,2631.0,3.80075]
[1730898201962,0.35526969,2631.2,2631.0,3.80075]
[1730898202149,4.36869892,2631.4,2631.0,3.80075]
[1730898202364,4.72408582,2631.3,2630.9,0.39512186]
[1730898202551,4.15593558,2631.2,2630.9,0.39512186]
[1730898202872,0.35528558,2631.1,2630.9,0.39512186]
[1730898203171,3.80048,2631.3,2630.9,0.39512186]
[1730898203363,4.15575783,2631.2,2630.9,0.39512186]
[1730898203544,0.35519783,2631.1,2630.9,0.39512186]
[1730898203737,3.80056,2631.2,2630.9,0.39512186]
[1730898204072,0.35520382,2631.1,2630.9,0.39512186]
[1730898204256,3.80056,2631.2,2630.9,0.39512186]
[1730898204553,3.80041,2631.3,2630.9,0.39512186]
[1730898204719,0.35513238,2631.2,2630.9,0.39512186]
[1730898205063,0.35513238,2631.1,2630.9,0.39512186]
[1730898205211,4.35026,2631.4,2630.9,0.39512186]
[1730898205416,0.35509701,2631.3,2631.0,3.80072]
[1730898205780,4.35013,2631.5,2631.0,7.60148]
[1730898205919,4.15540922,2631.4,2631.0,3.80072]
[1730898206123,0.35508922,2631.3,2631.0,3.80072]
[1730898206355,3.80032,2631.4,2631.0,3.80072]
[1730898206517,0.35506289,2631.3,2631.0,3.80072]
[1730898206717,3.80049,2631.3,2630.9,0.39512186]
[1730898206938,3.80055,2631.2,2630.9,0.39512186]
[1730898207967,3.80049,2631.3,2630.9,4.19609186]
[1730898207973,0.35506068,2631.2,2630.9,4.19609186]
[1730898208317,3.80049,2631.3,2630.9,4.19609186]
[1730898208442,0.35502399,2631.2,2630.9,0.39512186]
[1730898208643,3.8006,2631.2,2630.9,0.39512186]
[1730898208846,3.80041,2631.3,2630.9,0.39512186]
[1730898209052,0.35502637,2631.2,2630.9,0.39512186]
[1730898209260,3.80058,2631.2,2630.9,0.39512186]
[1730898209553,0.35503017,2631.1,2630.9,0.39512186]
[1730898209759,3.80041,2631.3,2630.9,0.39512186]
[1730898209920,0.35501481,2631.2,2630.9,4.19608186]
[1730898210121,3.80041,2631.3,2630.9,0.39512186]
[1730898210337,0.35501329,2631.2,2630.9,0.39512186]
[1730898210539,3.80041,2631.3,2630.9,0.39512186]
[1730898210742,0.35501426,2631.2,2630.9,0.39512186]
[1730898211035,3.80041,2631.3,2630.9,0.39512186]
[1730898211240,4.15562435,2631.2,2630.9,0.39512186]
[1730898211448,3.80061,2631.2,2630.9,0.39512186]
[1730898211673,0.55,2631.5,2630.9,0.39512186]
[1730898211879,3.80083,2631.0,2630.9,0.39512186]
[1730898213252,3.80067,2631.2,2630.9,0.39512186]
[1730898213558,0.55,2631.5,2631.0,3.80083]
[1730898213559,3.80027,2631.4,2631.0,3.80083]
[1730898213795,0.35496673,2631.3,2630.9,4.19607186]
[1730898213949,0.35496673,2631.2,2630.9,4.19607186]
[1730898214141,4.3502,2631.5,2630.9,4.19607186]
[1730898214472,3.80041,2631.3,2630.9,4.19607186]
[1730898214640,0.35497804,2631.2,2630.9,4.19607186]
[1730898214996,3.80041,2631.3,2630.9,0.39512186]
[1730898215295,0.35497809,2631.2,2630.9,4.19609186]
[1730898215464,3.80041,2631.3,2630.9,4.19609186]
[1730898215841,3.80041,2631.3,2630.9,0.39512186]
[1730898216038,8.467202,2631.3,2630.9,0.39512186]
[1730898216269,0.35502702,2631.2,2630.9,0.39512186]
[1730898216471,4.666772,2631.3,2630.9,0.39512186]
[1730898216668,4.15570501,2631.2,2630.9,0.39512186]
[1730898216856,3.80068,2631.2,2630.9,0.39512186]
[1730898217053,3.8007,2631.1,2630.9,0.39512186]
[1730898217604,3.8007,2631.1,2630.2,6.8019]
[1730898217605,3.80177,2630.4,2629.9,3.80235]
[1730898217764,3.80177,2630.4,2630.0,3.898284]
[1730898217967,0.35519535,2630.3,2630.0,0.096014]
[1730898218297,3.80207,2630.2,2630.0,0.096014]
[1730898218499,0.55,2630.1,2630.0,0.096014]
[1730898218669,4.35213,2630.1,2630.0,0.096014]
[1730898218856,0.90506092,2630.1,2630.0,0.096014]
[1730898219210,4.70719092,2630.1,2630.0,0.096014]
[1730898219397,0.55,2630.1,2630.0,0.096014]
[1730898219599,4.35213,2630.1,2630.0,0.096014]
[1730898220095,0.55,2630.1,2630.0,0.096014]
[1730898220502,11.35397,2630.4,2630.0,0.096014]
[1730898220801,0.35467752,2630.3,2630.0,0.096014]
[1730898221002,0.7504,2630.4,2630.0,3.898204]
[1730898221161,4.5522,2630.4,2630.0,0.096014]
[1730898221360,3.80185,2630.3,2630.0,0.096014]
[1730898222201,4.35213,2630.1,2630.0,0.096014]
[1730898224604,5.12103,2630.1,2630.0,0.096014]
[1730898225913,4.57103,2630.1,2630.0,0.096014]
[1730898226473,4.57103,2630.1,2630.0,0.046014]
[1730898227305,5.12103,2630.1,2630.0,0.046014]
[1730898227509,6.49122721,2630.1,2630.0,0.046014]
[1730898230322,4.57103,2630.1,2630.0,0.046014]
[1730898230517,3.80213,2630.1,2630.0,0.046014]
[1730898231012,4.61815,2630.3,2630.0,0.046014]
[1730898231219,3.80213,2630.1,2630.0,0.046014]
[1730898231389,4.61815,2630.3,2630.0,0.046014]
[1730898231601,1.578115,2630.3,2630.0,0.046014]
[1730898231790,3.80213,2630.1,2630.0,0.046014]
[1730898232910,4.35213,2630.1,2630.0,0.046014]
[1730898235492,3.80199,2630.2,2630.0,0.046014]
[1730898235705,3.0,2630.5,2630.1,3.8021]
[1730898235913,3.0,2630.5,2630.1,4.5671434]
[1730898236493,6.80131,2630.7,2630.1,8.3691934]
[1730898236685,3.80142,2630.6,2630.1,4.5670934]
[1730898236904,0.55,2630.4,2630.1,4.5670934]
[1730898237114,0.55,2630.4,2630.0,0.046014]
[1730898237317,0.55,2630.4,2630.1,3.8021]
[1730898237494,0.55,2630.4,2630.1,3.80206]
[1730898237707,0.55,2630.6,2630.0,0.046014]
[1730898237889,5.8082952,2631.2,2630.0,0.046014]
[1730898237890,3.81,2631.2,2630.6,3.80131]
[1730898238092,7.61057,2631.2,2630.6,3.80131]
[1730898238629,3.80069,2631.1,2630.6,3.80131]
[1730898238892,7.61057,2631.2,2630.3,0.7587]
[1730898238893,7.6106,2631.2,2630.3,0.7587]
[1730898239134,7.6106,2631.2,2630.0,3.848154]
[1730898239135,3.80129,2630.7,2630.0,4.676154]
[1730898239438,0.55,2630.4,2630.0,4.676154]
[1730898240087,3.80185,2630.3,2630.0,0.046014]
[1730898240283,4.352,2630.2,2630.0,0.046014]
[1730898241760,0.55,2630.2,2630.0,0.046014]
[1730898241966,0.55,2630.4,2630.0,0.046014]
[1730898242365,0.55,2630.3,2630.0,0.046014]
[1730898242662,0.55,2630.3,2630.0,3.848244]
[1730898242887,0.55,2630.4,2630.0,3.848244]
[1730898243031,0.55,2630.5,2630.2,3.80199]
[1730898243224,0.55,2630.5,2630.0,3.848244]
[1730898243225,4.35163,2630.5,2630.0,3.848244]
[1730898243782,0.55,2630.5,2630.1,3.80205]
[1730898244213,0.55,2630.5,2630.0,4.6133154]
[1730898244353,0.55,2630.3,2630.0,0.046014]
[1730898244540,4.35194,2630.3,2630.0,0.046014]
[1730898244843,0.55,2630.5,2630.0,3.848264]
[1730898245175,0.55,2630.7,2630.3,3.80175]
[1730898245459,4.35134,2630.7,2630.2,4.57746]
[1730898246025,4.35134,2630.7,2630.2,8.37937]
[1730898247037,4.35134,2630.7,2630.2,4.57746]
[1730898247368,0.55,2630.5,2630.2,4.57746]
[1730898247666,0.55,2630.6,2630.2,4.57746]
[1730898247820,0.55,2630.8,2630.4,3.80158]
[1730898248259,0.55,2630.8,2630.2,4.57747]
[1730898248482,0.55,2630.6,2630.3,3.80181]
[1730898248639,0.55,2630.6,2630.3,3.80177]
[1730898248994,0.55,2630.7,2630.2,4.57747]
[1730898249143,4.35129,2630.7,2630.2,4.57747]
[1730898249445,0.55,2630.5,2630.1,3.80202]
[1730898249657,0.7922,2630.7,2630.0,0.046014]
[1730898249850,0.55,2630.7,2630.3,3.80175]
[1730898250276,3.80093,2631.0,2630.1,3.80201]
[1730898250277,3.80091,2631.0,2630.4,3.80156]
[1730898250459,4.08130137,2630.9,2630.4,3.80156]
[1730898250654,3.80129,2630.7,2630.3,3.80184]
[1730898251574,0.55,2630.6,2630.2,3.80192]
[1730898251880,4.35141,2630.6,2630.2,3.80192]
[1730898252176,4.35141,2630.6,2630.1,3.80211]
[1730898252332,4.35141,2630.6,2630.2,3.80197]
[1730898252538,0.55,2630.4,2630.0,3.848264]
[1730898253027,3.80193,2630.3,2630.0,0.046014]
[1730898253193,0.55,2630.2,2630.0,0.046014]
[1730898253553,4.35201,2630.2,2630.0,0.046014]
[1730898253774,3.80201,2630.2,2630.0,0.046014]
[1730898253987,0.55,2630.1,2630.0,0.046014]
[1730898254201,4.35213,2630.1,2630.0,0.046014]
[1730898255811,0.55,2630.1,2630.0,0.046014]
[1730898255992,4.35213,2630.1,2630.0,0.046014]
[1730898256198,5.11953,2630.1,2630.0,0.046014]
[1730898256517,9.88037979,2630.1,2630.0,0.046014]
[1730898256805,10.72817731,2630.1,2630.0,0.046014]
[1730898257026,10.4480644,2630.1,2630.0,0.046014]
[1730898257159,10.72816953,2630.1,2630.0,0.046014]
[1730898258219,3.0,2630.0,2629.2,0.1291971]
[1730898258403,4.35329,2629.3,2629.2,0.1291971]
[1730898258801,4.70817113,2629.3,2629.2,0.1291971]
[1730898259006,4.70817113,2629.3,2628.7,0.84783359]
[1730898259007,6.80401,2628.8,2628.7,0.84783359]
[1730898259305,8.5435038,2628.8,2628.7,0.84783359]
[1730898259417,10.81980388,2628.8,2628.7,0.84783359]
[1730898259606,11.09944078,2628.8,2628.7,0.84783359]
[1730898260321,11.13198639,2628.8,2628.7,0.84783359]
[1730898260811,11.13121801,2628.8,2628.7,0.84783359]
[1730898260974,10.56381775,2628.8,2628.7,0.84783359]
[1730898261354,0.55,2629.0,2628.7,0.84783359]
[1730898261521,0.55,2628.8,2628.7,0.84783359]
[1730898261686,3.80368,2629.1,2628.7,0.84783359]
[1730898261927,4.62282,2629.4,2628.7,1.31305295]
[1730898262082,0.35445991,2629.3,2628.8,4.5869]
[1730898262283,13.92227713,2629.8,2628.8,4.5869]
[1730898262284,4.62232,2629.7,2629.1,3.80355]
[1730898262484,3.8033,2629.3,2628.7,0.84783359]
[1730898262709,0.8196,2629.7,2628.8,0.87597272]
[1730898262928,0.35444113,2629.6,2629.0,3.80369]
[1730898263123,3.80279,2629.7,2629.1,0.380369]
[1730898263431,0.35451694,2629.6,2629.2,3.80343]
[1730898263745,3.80279,2629.7,2629.1,0.380369]
[1730898263960,0.35452971,2629.6,2629.1,0.380369]
[1730898264115,0.55,2629.5,2629.1,4.183919]
[1730898264289,4.35288,2629.6,2629.1,0.380369]
[1730898264492,0.55,2629.4,2628.8,0.7999]
[1730898264695,0.55,2629.6,2629.2,3.80341]
[1730898264930,0.55,2629.6,2629.2,3.80333]
[1730898265270,0.55,2629.6,2629.2,7.60668]
[1730898265387,3.80252,2629.9,2629.3,1.538468]
[1730898265587,0.35446587,2629.8,2629.3,1.538468]
[1730898265969,3.8025,2629.9,2629.3,1.538468]
[1730898266127,4.15704318,2629.8,2629.3,1.538468]
[1730898266298,3.80258,2629.8,2629.3,1.538468]
[1730898267024,0.55,2629.7,2629.3,0.7778]
[1730898267192,0.55,2629.8,2629.3,0.7778]
[1730898267390,0.55,2629.8,2629.4,3.80312]
[1730898267724,0.55,2630.0,2629.5,3.80299]
[1730898267922,0.55,2629.8,2629.4,3.80311]
[1730898268087,0.55,2629.8,2629.4,4.641534]
[1730898268291,0.55,2629.8,2629.4,0.838424]
[1730898268596,0.55,2629.8,2629.4,3.80302]
[1730898271416,0.55,2629.8,2629.2,3.80334]
[1730898271609,0.55,2629.8,2628.7,0.84783359]
[1730898271610,4.3007,2629.2,2628.7,0.84783359]
[1730898271900,0.55,2629.0,2628.7,0.84783359]
[1730898272123,0.92179938,2629.1,2628.7,0.84783359]
[1730898272124,0.55,2629.1,2628.7,0.84783359]
[1730898272308,4.35358,2629.1,2628.7,0.84783359]
[1730898272531,9.51863519,2629.6,2629.0,3.8036]
[1730898272742,3.80283,2629.7,2629.0,3.8036]
[1730898272743,0.35441418,2629.5,2629.0,7.6072]
[1730898273187,3.0,2629.8,2629.0,3.8036]
[1730898273338,0.354365,2629.7,2629.1,0.38036]
[1730898273584,4.57788,2629.9,2629.2,4.62253]
[1730898273726,0.35433083,2629.8,2629.3,3.80327]
[1730898274052,3.8022,2630.1,2629.4,3.80304]
[1730898274203,0.3543282,2630.0,2629.5,3.80298]
[1730898274566,3.8022,2630.1,2629.5,3.80298]
[1730898274745,0.35429787,2630.0,2629.5,3.80298]
[1730898275058,0.55,2630.0,2629.5,3.80298]
[1730898276432,0.55,2630.0,2629.4,3.80313]
[1730898276735,0.55,2630.1,2629.6,3.80275]
[1730898277018,0.55,2630.1,2629.7,4.7029367]